bitfinex-derivatives/quotes_ETHF0:USTF0_20250331
["timestamp","ask_amount","ask_price","bid_price","bid_amount"]
[1743404965158,3.21748,1802.4,1802.2,1.4905]
[1743404965361,2.1076,1802.4,1802.2,1.4905]
[1743404965868,3.21744,1802.4,1802.2,1.4905]
[1743404966167,2.1076,1802.4,1802.2,2.60043]
[1743404966466,2.1076,1802.4,1802.2,2.60045]
[1743404966663,3.21743,1802.4,1802.2,1.4905]
[1743404966863,2.1076,1802.4,1802.3,1.10989]
[1743404967259,2.1076,1802.4,1802.2,1.4905]
[1743404967260,3.21747,1802.4,1802.2,1.4905]
[1743404967466,2.1076,1802.4,1802.2,1.4905]
[1743404967662,1.10989,1802.3,1802.2,1.4905]
[1743404967856,2.54109,1802.3,1802.2,1.4905]
[1743404968062,2.54109,1802.3,1802.2,40.8]
[1743404970758,5.74889,1802.3,1802.2,40.8]
[1743404972072,1.4312,1802.3,1802.2,41.90995]
[1743404972363,0.694,1802.4,1802.3,1.10989]
[1743404972569,4.32594663,1802.5,1802.2,2.58801]
[1743404972870,3.21612663,1802.5,1802.2,1.4781]
[1743404973072,4.32593663,1802.5,1802.4,40.8]
[1743404973468,1.11808663,1802.5,1802.4,40.8]
[1743404977872,4.32588663,1802.5,1802.4,40.8]
[1743404978074,5.01218663,1802.5,1802.4,40.8]
[1743404979784,4.32588663,1802.5,1802.4,40.8]
[1743404979971,4.32588663,1802.5,1802.4,41.90983]
[1743404979972,0.00832663,1802.5,1802.4,41.90983]
[1743404980173,0.00832663,1802.5,1802.4,43.37463]
[1743404981175,0.00832663,1802.5,1802.4,43.79573]
[1743404981470,1.11808663,1802.5,1802.4,46.6979]
[1743404981675,1.11808663,1802.5,1802.4,47.80773]
[1743404981873,1.11808663,1802.5,1802.4,46.6979]
[1743404982173,0.00832663,1802.5,1802.4,47.80773]
[1743404982568,1.11808663,1802.5,1802.4,47.80773]
[1743404984069,0.00832663,1802.5,1802.4,47.80773]
[1743404984673,1.11808663,1802.5,1802.4,47.80773]
[1743404985975,3.2078,1802.9,1802.4,46.6979]
[1743404986178,3.45796,1803.6,1802.9,2.7738]
[1743404986374,1.1094,1803.1,1803.0,5.4423]
[1743404986674,1.1094,1803.1,1803.0,42.2033]
[1743404986871,1.10937,1803.2,1803.1,1.10939]
[1743404987066,1.1094,1803.1,1803.0,2.51273]
[1743404987380,1.11764663,1803.3,1803.2,1.10933]
[1743404987673,1.10936,1803.2,1803.1,1.10936]
[1743404987873,1.10936,1803.2,1803.0,42.21162663]
[1743404987874,1.1094,1803.1,1803.0,1.41162663]
[1743404988082,1.10939,1803.2,1803.1,1.10938]
[1743404988278,1.10939,1803.2,1803.0,2.52103663]
[1743404988279,1.1094,1803.1,1803.0,2.52103663]
[1743404988677,2.57406,1803.2,1803.0,2.52103663]
[1743404988877,2.57406,1803.2,1803.1,40.8]
[1743404989078,1.10936,1803.2,1803.1,40.8]
[1743404989277,2.57406,1803.2,1803.1,40.8]
[1743404989982,2.57406,1803.2,1803.1,41.9094]
[1743404990178,2.1692,1803.2,1803.1,41.9094]
[1743404990374,1.11759663,1803.3,1803.1,40.8]
[1743404990577,1.11764663,1803.3,1803.1,40.8]
[1743404990887,2.57403,1803.2,1803.1,41.9094]
[1743404991383,1.4647,1803.2,1803.1,40.8]
[1743404991574,1.4647,1803.2,1803.1,41.9094]
[1743404993578,1.4647,1803.2,1803.1,43.3394]
[1743404994588,2.57403,1803.2,1803.1,43.3394]
[1743404995290,1.4647,1803.2,1803.1,43.3394]
[1743404995788,2.57403,1803.2,1803.1,42.23]
[1743404996282,1.4647,1803.2,1803.1,42.23]
[1743404996876,2.57403,1803.2,1803.1,42.23]
[1743404997179,2.57403,1803.2,1803.1,40.8]
[1743404998785,1.4647,1803.2,1803.1,40.8]
[1743404999089,1.4647,1803.2,1803.1,41.9094]
[1743404999279,3.21612663,1803.3,1803.1,41.9094]
[1743404999574,3.21612663,1803.3,1803.0,1.46412663]
[1743404999575,5.79899663,1803.3,1803.2,1.4558]
[1743404999978,5.79899663,1803.3,1803.2,42.2558]
[1743405000183,5.79899663,1803.3,1803.2,40.8]
[1743405006788,8.29899663,1803.3,1803.2,40.8]
[1743405006990,1.1094,1803.1,1803.0,0.00832663]
[1743405007181,1.10976,1802.5,1802.4,5.5582]
[1743405007982,1.10976,1802.5,1802.4,46.3582]
[1743405008184,1.10976,1802.5,1802.4,42.3122]
[1743405008384,2.59836,1802.5,1802.4,40.8]
[1743405009686,3.04271434,1802.5,1802.4,40.8]
[1743405009992,2.59836,1802.5,1802.4,40.8]
[1743405010286,6.64136,1802.5,1802.4,40.8]
[1743405010483,1.10983,1802.4,1802.3,0.00832663]
[1743405010681,1.1102,1801.8,1801.7,3.2078]
[1743405010884,1.1103,1801.7,1801.5,4.043]
[1743405011086,1.11026,1801.7,1801.6,1.5062]
[1743405011591,1.11026,1801.7,1801.6,42.3062]
[1743405016584,1.11026,1801.7,1801.6,40.8]
[1743405016891,4.31806,1801.7,1801.6,40.8]
[1743405017579,5.78246,1801.7,1801.6,40.8]
[1743405018987,2.57466,1801.7,1801.6,40.8]
[1743405019384,5.78246,1801.7,1801.6,40.8]
[1743405021589,5.55162,1801.6,1800.6,3.2078]
[1743405021796,1.11075,1800.9,1800.8,1.5178]
[1743405021986,4.31855,1800.9,1800.8,1.5178]
[1743405022188,2.77712,1800.8,1800.4,3.2078]
[1743405022482,1.11087,1800.7,1800.6,1.5178]
[1743405022686,2.51077,1800.7,1800.6,1.5178]
[1743405023192,2.51077,1800.7,1800.6,42.3178]
[1743405023796,5.71857,1800.7,1800.6,40.8]
[1743405024294,3.2078,1800.7,1800.6,40.8]
[1743405024495,4.31867,1800.7,1800.6,40.8]
[1743405025091,5.83667,1800.7,1800.6,40.8]
[1743405025288,6.59327,1800.7,1800.6,40.8]
[1743405029793,2.62887,1800.7,1800.6,40.8]
[1743405030196,0.00832663,1800.8,1800.6,41.91089]
[1743405030399,1.11913663,1800.8,1800.7,1.4256]
[1743405030904,1.11913663,1800.8,1800.7,42.2256]
[1743405031104,0.00832663,1800.8,1800.7,42.2256]
[1743405031304,0.00832663,1800.8,1800.7,43.33647]
[1743405031600,0.00832663,1800.8,1800.7,42.2256]
[1743405031996,1.11913663,1800.8,1800.7,42.2256]
[1743405033201,1.11913663,1800.8,1800.7,43.33647]
[1743405033902,0.00832663,1800.8,1800.7,46.54427]
[1743405034104,0.00832663,1800.8,1800.7,49.04427]
[1743405034498,1.11076,1800.9,1800.7,47.9334]
[1743405034697,1.11076,1800.9,1800.8,5.4581]
[1743405034893,1.11076,1800.9,1800.8,6.56891]
[1743405035093,3.2078,1801.1,1800.9,1.1107]
[1743405035408,1.11063,1801.1,1801.0,43.35573]
[1743405036099,0.00832663,1801.2,1801.1,1.11063]
[1743405036405,0.00832663,1801.2,1801.1,9.77453]
[1743405036606,0.00832663,1801.2,1801.1,12.27453]
[1743405036810,0.00832663,1801.2,1801.1,53.07453]
[1743405037097,1.11889663,1801.2,1801.1,51.9639]
[1743405037304,1.11889663,1801.2,1801.1,53.07453]
[1743405037701,0.00832663,1801.2,1801.1,53.07453]
[1743405038400,1.11889663,1801.2,1801.1,49.4549]
[1743405038702,1.11889663,1801.2,1801.1,40.8]
[1743405039108,3.20219663,1801.2,1801.1,40.8]
[1743405040808,2.09162663,1801.2,1801.1,40.8]
[1743405041314,3.20219663,1801.2,1801.1,40.8]
[1743405041507,2.09162663,1801.2,1801.1,41.91063]
[1743405041712,0.69612663,1801.2,1801.1,41.91063]
[1743405041908,0.00832663,1801.2,1801.1,45.11843]
[1743405042107,0.00832663,1801.2,1801.1,46.62593]
[1743405045021,1.11889663,1801.2,1801.1,49.5213]
[1743405045221,2.53339663,1801.2,1801.1,46.3135]
[1743405047315,2.53339663,1801.2,1801.1,42.3075]
[1743405047921,2.53339663,1801.2,1801.1,43.41813]
[1743405048120,2.53339663,1801.2,1801.1,42.3075]
[1743405048621,1.11889663,1801.2,1801.1,43.41813]
[1743405048822,1.11889663,1801.2,1801.1,42.3075]
[1743405049019,2.52459663,1801.2,1801.1,42.3075]
[1743405049219,1.11889663,1801.2,1801.1,43.41813]
[1743405049420,2.52459663,1801.2,1801.1,42.3075]
[1743405049917,1.11889663,1801.2,1801.1,43.41813]
[1743405050714,1.41402663,1801.2,1801.1,43.41813]
[1743405050917,2.52459663,1801.2,1801.1,43.41813]
[1743405051422,1.11889663,1801.2,1801.1,42.3075]
[1743405051612,2.52299663,1801.2,1801.1,40.8]
[1743405051817,3.27389663,1801.2,1801.1,40.8]
[1743405052320,3.27389663,1801.2,1801.1,43.31503]
[1743405053218,0.00832663,1801.2,1801.1,43.31503]
[1743405053617,1.11889663,1801.2,1801.1,43.31503]
[1743405054022,2.52299663,1801.2,1801.1,43.31503]
[1743405054927,1.41242663,1801.2,1801.1,43.31503]
[1743405055820,2.52299663,1801.2,1801.1,43.31503]
[1743405056526,1.41242663,1801.2,1801.1,43.31503]
[1743405057425,1.41242663,1801.2,1801.1,46.52283]
[1743405058023,2.52299663,1801.2,1801.1,46.52283]
[1743405058214,1.41242663,1801.2,1801.1,43.31503]
[1743405058627,2.52299663,1801.2,1801.1,43.31503]
[1743405059120,2.52299663,1801.2,1801.1,47.28503]
[1743405060822,2.52299663,1801.2,1801.1,41.91063]
[1743405061427,2.52299663,1801.2,1801.1,43.40153]
[1743405061828,2.52299663,1801.2,1801.1,41.91063]
[1743405062623,2.52299663,1801.2,1801.1,43.40153]
[1743405063028,2.52299663,1801.2,1801.1,41.91063]
[1743405063231,5.73079663,1801.2,1801.1,40.8]
[1743405064928,1.41242663,1801.2,1801.1,40.8]
[1743405065132,1.41242663,1801.2,1801.1,41.91063]
[1743405065335,2.52299663,1801.2,1801.1,40.8]
[1743405065533,1.11889663,1801.2,1801.1,42.2236]
[1743405065736,2.55249663,1801.2,1801.1,42.2236]
[1743405065930,5.76029663,1801.2,1801.1,42.2236]
[1743405066131,3.21612663,1801.2,1801.1,43.33423]
[1743405066432,1.11889663,1801.2,1801.1,43.33423]
[1743405066633,2.55249663,1801.2,1801.1,42.2236]
[1743405066833,2.55249663,1801.2,1801.1,43.33423]
[1743405066834,1.44192663,1801.2,1801.1,43.33423]
[1743405067033,2.55249663,1801.2,1801.1,42.2236]
[1743405067438,5.76029663,1801.2,1801.1,40.8]
[1743405076939,1.11081,1800.8,1800.7,3.2078]
[1743405077143,1.11081,1800.8,1800.7,4.6763]
[1743405077737,2.50721,1800.8,1800.7,4.6763]
[1743405077937,2.50721,1800.8,1800.7,45.4763]
[1743405078139,1.11081,1800.8,1800.7,46.58717]
[1743405078337,1.11081,1800.8,1800.7,45.4763]
[1743405079138,2.49551,1800.8,1800.7,42.2685]
[1743405081053,3.23191,1800.8,1800.7,42.2685]
[1743405081340,6.43971,1800.8,1800.7,40.8]
[1743405082739,1.11087,1800.7,1800.6,0.00137759]
[1743405083040,1.11106,1800.4,1800.3,1.4459]
[1743405083741,3.37326,1800.4,1800.3,40.8]
[1743405083943,3.37326,1800.4,1800.3,39.44288]
[1743405084144,14.25855,1800.4,1799.6,3.941]
[1743405084446,1.11149,1799.7,1799.6,3.941]
[1743405084649,5.98594,1800.1,1799.7,1.11147]
[1743405084839,2.77827,1800.0,1799.6,7.1488]
[1743405085039,1.11131,1800.0,1799.9,40.8]
[1743405085847,4.31906,1800.1,1799.9,41.91134]
[1743405086047,0.00832663,1800.2,1800.0,4.6308]
[1743405086247,1.11131,1800.0,1799.9,40.8]
[1743405086448,1.11131,1800.0,1799.9,42.223]
[1743405086640,1.11131,1800.0,1799.9,40.8]
[1743405086946,6.45081,1800.0,1799.9,40.8]
[1743405087741,1.11155,1799.6,1799.5,0.00702663]
[1743405088559,3.21095,1799.6,1799.5,0.00702663]
[1743405088749,3.21095,1799.6,1799.5,40.80702663]
[1743405089946,1.11155,1799.6,1799.5,40.80702663]
[1743405090351,1.11155,1799.6,1799.5,42.26162663]
[1743405093053,0.7658,1800.6,1799.5,66.04073265]
[1743405093252,1.11118,1800.2,1800.1,3.2078]
[1743405093949,1.11118,1800.2,1800.1,44.0078]
[1743405095347,1.87698,1800.2,1800.1,44.0078]
[1743405096252,1.87698,1800.2,1800.1,40.8]
[1743405097852,0.7658,1800.2,1800.1,40.8]
[1743405098350,2.174,1800.2,1800.1,40.8]
[1743405098857,2.174,1800.2,1800.1,45.4276]
[1743405099058,3.28518,1800.2,1800.1,42.2198]
[1743405100145,3.28518,1800.2,1800.1,45.4276]
[1743405100350,2.174,1800.2,1800.1,46.53884]
[1743405100552,0.7658,1800.2,1800.1,46.53884]
[1743405101256,1.11946663,1800.3,1800.1,46.53884]
[1743405101460,1.11949663,1800.3,1800.1,4.31903]
[1743405101658,0.00832663,1800.3,1800.1,3.2078]
[1743405101850,1.43262663,1800.3,1800.2,40.8]
[1743405102762,0.00832663,1800.3,1800.2,40.8]
[1743405103162,1.43262663,1800.3,1800.2,40.8]
[1743405103665,2.54374663,1800.3,1800.2,40.8]
[1743405108062,3.26834663,1800.3,1800.2,40.8]
[1743405108465,7.27834663,1800.3,1800.2,40.8]
[1743405108666,9.77834663,1800.3,1800.2,40.8]
[1743405109572,8.66722663,1800.3,1800.2,40.8]
[1743405109762,6.16722663,1800.3,1800.2,40.8]
[1743405110569,9.37502663,1800.3,1800.2,40.8]
[1743405112170,11.87502663,1800.3,1800.2,40.8]
[1743405113772,12.98614663,1800.3,1800.2,40.8]
[1743405114273,10.48614663,1800.3,1800.2,40.8]
[1743405114464,6.47614663,1800.3,1800.2,40.8]
[1743405115176,2.54374663,1800.3,1800.2,44.0078]
[1743405115471,2.54374663,1800.3,1800.2,40.8]
[1743405116066,5.75154663,1800.3,1800.2,40.8]
[1743405116472,6.49764663,1800.3,1800.2,40.8]
[1743405117266,1.11944663,1800.3,1800.2,40.8]
[1743405118479,2.53564663,1800.3,1800.2,40.8]
[1743405118673,1.42452663,1800.3,1800.2,40.8]
[1743405119577,1.42452663,1800.3,1800.2,44.0078]
[1743405120182,0.00832663,1800.3,1800.2,44.0078]
[1743405120370,0.00832663,1800.3,1800.2,44.0153]
[1743405120775,0.00832663,1800.3,1800.2,45.5306]
[1743405121777,0.00832663,1800.3,1800.2,46.64178]
[1743405122078,1.11944663,1800.3,1800.2,45.5306]
[1743405122488,1.11093,1800.7,1800.5,1.11097]
[1743405122680,1.11093,1800.7,1800.6,5.80244]
[1743405122981,1.11086,1800.8,1800.6,5.80244]
[1743405123179,1.11081,1800.8,1800.7,42.2837]
[1743405123881,0.00832663,1800.9,1800.7,44.7837]
[1743405124178,1.11910663,1800.9,1800.8,9.87431]
[1743405124772,1.11910663,1800.9,1800.8,49.5635]
[1743405125984,1.11907663,1800.9,1800.8,49.5635]
[1743405126593,0.00832663,1800.9,1800.8,50.67431]
[1743405128481,0.00832663,1800.9,1800.8,53.17431]
[1743405128681,1.11061,1801.2,1800.8,53.17431]
[1743405128882,1.11056,1801.3,1801.2,1.11057]
[1743405129086,2.62648,1801.4,1801.3,1.1105]
[1743405129297,2.62644,1801.4,1801.3,2.4978]
[1743405129596,2.62644,1801.4,1801.3,42.1873]
[1743405129796,2.62644,1801.4,1801.3,43.2978]
[1743405130192,0.00832663,1801.5,1801.3,43.29776]
[1743405130394,0.00832663,1801.5,1801.4,4.31824]
[1743405130694,0.00832663,1801.5,1801.4,9.80654]
[1743405131090,0.00832663,1801.5,1801.4,50.60654]
[1743405131292,1.4849,1801.9,1801.8,1.1102]
[1743405131492,2.59505,1801.9,1801.7,7.3078]
[1743405131689,0.7002,1802.0,1801.9,1.11013]
[1743405131896,1.11,1802.2,1801.9,1.11013]
[1743405131897,1.4849,1802.1,1802.0,1.11007]
[1743405132200,1.4849,1802.1,1802.0,2.56257]
[1743405132396,0.70852663,1802.2,1802.1,1.11001]
[1743405132693,2.19342663,1802.2,1802.1,43.36251]
[1743405132900,0.00832663,1802.2,1802.1,46.57031]
[1743405134783,0.7048,1802.5,1802.3,1.10985]
[1743405134784,1.8146,1802.5,1802.3,1.10985]
[1743405134999,1.8146,1802.5,1802.4,1.4274]
[1743405135293,1.3698,1802.6,1802.5,1.10976]
[1743405135493,1.1097,1802.6,1802.4,2.53722]
[1743405135993,2.48634106,1802.7,1802.5,1.10976]
[1743405136192,2.48634106,1802.7,1802.6,1.4274]
[1743405136391,1.37665106,1802.7,1802.6,2.5371]
[1743405136997,0.00685106,1802.7,1802.6,2.5371]
[1743405137297,0.00685106,1802.7,1802.6,43.3371]
[1743405138097,1.81432,1803.0,1802.6,48.8054]
[1743405138401,1.10952,1802.9,1802.7,5.81831]
[1743405138592,1.10952,1802.9,1802.7,5.81832]
[1743405139493,1.10958,1802.8,1802.7,4.7087]
[1743405140096,1.10958,1802.8,1802.7,45.5087]
[1743405140897,1.10958,1802.8,1802.7,46.3699]
[1743405141700,1.10958,1802.8,1802.7,44.869]
[1743405142308,1.10958,1802.8,1802.7,48.0768]
[1743405142606,1.10958,1802.8,1802.7,49.5106]
[1743405143208,2.50766,1802.9,1802.7,50.62024]
[1743405143502,2.50768,1802.9,1802.7,50.62024]
[1743405143702,1.10958,1802.8,1802.7,50.62024]
[1743405144295,1.10958,1802.8,1802.7,49.5106]
[1743405144500,1.10953,1802.9,1802.8,1.10954]
[1743405144901,3.2779,1803.0,1802.9,1.10952]
[1743405145105,1.81426,1803.0,1802.9,45.11732]
[1743405145404,1.81426,1803.0,1802.9,44.0078]
[1743405145802,1.81426,1803.0,1802.9,45.4332]
[1743405146207,1.81426,1803.0,1802.9,46.54272]
[1743405146797,0.7048,1803.0,1802.9,46.54272]
[1743405147302,6.43056,1803.0,1802.9,40.8]
[1743405147907,3.22276,1803.0,1802.9,40.8]
[1743405149711,6.43056,1803.0,1802.9,40.8]
[1743405151503,1.10983,1802.4,1802.3,3.2078]
[1743405151809,1.10979,1802.5,1802.3,7.2448]
[1743405152017,1.10979,1802.5,1802.4,1.3785]
[1743405152512,2.57459,1802.5,1802.4,42.1785]
[1743405153106,2.57459,1802.5,1802.4,43.28833]
[1743405153107,1.4648,1802.5,1802.4,43.28833]
[1743405153311,1.86734,1802.6,1802.4,42.1785]
[1743405153514,1.86734,1802.6,1802.5,4.7031]
[1743405154207,1.86734,1802.6,1802.5,45.5031]
[1743405154603,1.86734,1802.6,1802.5,44.0078]
[1743405156415,5.07514,1802.6,1802.5,40.8]
[1743405156815,7.57514,1802.6,1802.5,40.8]
[1743405157109,1.11007,1802.0,1801.9,7.24912663]
[1743405157914,1.11007,1802.0,1801.9,48.04912663]
[1743405158112,2.51897,1802.0,1801.9,48.04912663]
[1743405158510,1.11007,1802.0,1801.9,48.04912663]
[1743405158714,1.11007,1802.0,1801.9,49.15922663]
[1743405159416,1.11007,1802.0,1801.9,48.04912663]
[1743405160211,1.11007,1802.0,1801.9,49.52332663]
[1743405161113,1.11007,1802.0,1801.9,50.63345663]
[1743405161709,1.11005,1802.1,1802.0,1.11007]
[1743405161910,1.11005,1802.1,1802.0,2.56597]
[1743405162305,1.11005,1802.1,1802.0,43.36597]
[1743405162922,1.11005,1802.1,1802.0,42.2559]
[1743405165722,1.11005,1802.1,1802.0,43.36597]
[1743405166522,2.61789,1802.2,1802.0,43.36597]
[1743405166719,1.11001,1802.1,1802.0,42.2559]
[1743405166919,2.54241,1802.1,1802.0,43.36597]
[1743405167115,2.54241,1802.1,1802.0,42.2559]
[1743405167724,2.54241,1802.1,1802.0,43.36597]
[1743405168922,1.11001,1802.1,1802.0,43.36597]
[1743405170426,1.11001,1802.1,1802.0,42.2559]
[1743405170919,2.47631,1802.1,1802.0,42.2559]
[1743405171422,2.47631,1802.1,1802.0,40.8]
[1743405171924,5.68411,1802.1,1802.0,40.8]
[1743405173628,8.18411,1802.1,1802.0,40.8]
[1743405174028,12.16211,1802.1,1802.0,40.8]
[1743405174430,1.11007,1802.0,1801.9,6.63e-06]
[1743405174726,3.21917,1802.0,1801.9,6.63e-06]
[1743405175027,5.71917,1802.0,1801.9,6.63e-06]
[1743405175430,1.1105,1801.3,1801.2,1.3675]
[1743405176222,2.508,1801.3,1801.2,1.3675]
[1743405176423,2.508,1801.3,1801.2,40.8]
[1743405177929,2.508,1801.3,1801.2,36.92213]
[1743405178132,1.11112,1800.3,1800.2,1.502]
[1743405179129,1.11112,1800.3,1800.2,42.302]
[1743405181526,5.02982,1800.3,1800.2,40.8]
[1743405181725,5.79202,1800.3,1800.2,40.8]
[1743405182733,7.23832,1800.3,1800.2,40.8]
[1743405183433,7.23832,1800.3,1800.1,0.00832663]
[1743405183434,1.11118,1800.2,1800.1,0.00832663]
[1743405183634,2.55748,1800.2,1800.1,0.00832663]
[1743405184231,2.55748,1800.2,1800.1,40.80832663]
[1743405185127,0.7109,1800.3,1800.1,45.12735663]
[1743405185328,2.56569663,1800.4,1800.2,1.509]
[1743405185626,1.11112,1800.3,1800.2,1.509]
[1743405185836,1.4678,1800.3,1800.2,1.509]
[1743405186020,2.57892,1800.3,1800.2,1.509]
[1743405186223,2.57892,1800.3,1800.2,42.309]
[1743405186627,0.00832663,1800.4,1800.2,42.309]
[1743405186937,1.11938663,1800.4,1800.3,3.2078]
[1743405187124,0.00832663,1800.4,1800.3,3.2078]
[1743405187329,0.00832663,1800.4,1800.3,6.81892]
[1743405187636,0.00832663,1800.4,1800.3,47.61892]
[1743405188027,1.11088,1800.7,1800.6,1.11091]
[1743405188330,1.11088,1800.7,1800.6,7.2108]
[1743405188534,1.11088,1800.7,1800.6,8.32174]
[1743405188732,1.11088,1800.7,1800.6,7.2108]
[1743405188928,1.11088,1800.7,1800.6,44.803]
[1743405189337,2.58698663,1800.8,1800.6,45.91394]
[1743405189539,1.11918663,1800.8,1800.7,4.6642]
[1743405190138,1.11918663,1800.8,1800.7,45.4642]
[1743405192732,0.00832663,1800.8,1800.7,45.4642]
[1743405192934,0.00832663,1800.8,1800.7,46.57507]
[1743405195044,1.11913663,1800.8,1800.7,45.4642]
[1743405195435,0.00832663,1800.8,1800.7,46.57507]
[1743405198335,1.11064,1801.1,1801.0,1.11069]
[1743405198532,2.1935,1801.3,1801.0,3.968]
[1743405198730,1.11058,1801.2,1801.1,1.11058]
[1743405198937,1.4469,1801.2,1801.1,43.39868]
[1743405199131,1.11057,1801.2,1801.1,42.2881]
[1743405199339,1.11057,1801.2,1801.1,43.39869]
[1743405199642,2.1935,1801.3,1801.1,43.39869]
[1743405199643,3.30405,1801.3,1801.2,1.11057]
[1743405199836,3.30405,1801.3,1801.2,1.4881]
[1743405200342,3.30405,1801.3,1801.2,42.2881]
[1743405201234,1.4128,1801.5,1801.4,1.11044]
[1743405201543,0.7427,1801.7,1801.4,1.1104]
[1743405201738,0.7427,1801.7,1801.5,1.51]
[1743405201739,3.26577,1801.7,1801.5,1.51]
[1743405201945,3.26577,1801.7,1801.6,40.8]
[1743405202336,3.26577,1801.7,1801.6,42.31]
[1743405202647,1.11016,1801.9,1801.7,1.11025]
[1743405202836,1.80326,1801.9,1801.8,1.51]
[1743405203435,1.80326,1801.9,1801.8,42.31]
[1743405204146,3.28826,1801.9,1801.8,42.31]
[1743405204544,2.1781,1801.9,1801.8,43.4202]
[1743405204746,3.28823,1801.9,1801.8,42.31]
[1743405205043,1.10999,1802.2,1802.0,1.11005]
[1743405205249,2.59499,1802.2,1802.1,1.377]
[1743405205743,2.59495,1802.2,1802.1,1.377]
[1743405207351,2.59495,1802.2,1802.1,42.177]
[1743405208053,2.59495,1802.2,1802.1,40.8]
[1743405214150,1.11007,1802.0,1801.9,0.00832663]
[1743405214456,1.11032,1801.6,1801.5,1.4352]
[1743405215243,1.3903,1801.6,1801.5,43.34558]
[1743405215656,2.50062,1801.6,1801.5,42.2352]
[1743405216354,2.50062,1801.6,1801.5,43.34558]
[1743405216754,1.82330663,1801.7,1801.6,1.11032]
[1743405216953,0.71302663,1801.7,1801.6,5.80962]
[1743405217153,1.82328663,1801.7,1801.6,5.80962]
[1743405217454,3.33208663,1801.7,1801.6,46.60962]
[1743405217856,3.33208663,1801.7,1801.6,42.2915]
[1743405218055,3.33208663,1801.7,1801.6,45.4993]
[1743405219449,3.33208663,1801.7,1801.6,42.2915]
[1743405220055,3.33208663,1801.7,1801.6,45.4993]
[1743405220858,3.33208663,1801.7,1801.6,42.2915]
[1743405221260,3.33208663,1801.7,1801.6,46.60962]
[1743405221555,3.33208663,1801.7,1801.6,45.4993]
[1743405222162,3.33208663,1801.7,1801.6,42.2915]
[1743405222959,3.33208663,1801.7,1801.6,40.8]
[1743405223558,2.22182663,1801.7,1801.6,40.8]
[1743405223767,2.22182663,1801.7,1801.6,41.91032]
[1743405223962,3.33208663,1801.7,1801.6,44.0078]
[1743405224156,3.33208663,1801.7,1801.6,40.8]
[1743405229163,5.83208663,1801.7,1801.6,40.8]
[1743405229558,6.59878663,1801.7,1801.6,40.4]
[1743405230065,1.11038,1801.5,1801.4,0.00832663]
[1743405230258,1.11038,1801.5,1801.0,8.5772]
[1743405230259,9.91679,1801.5,1801.0,4.6532]
[1743405230459,1.11057,1801.2,1801.1,1.4454]
[1743405230659,1.11053,1801.3,1801.1,2.556]
[1743405230860,2.6026,1801.3,1801.2,1.4454]
[1743405231063,1.4921,1801.3,1801.2,42.2454]
[1743405231261,1.11038,1801.6,1801.2,45.4532]
[1743405231465,1.11043,1801.5,1801.4,3.2078]
[1743405231665,1.11033,1801.6,1801.4,9.66829]
[1743405231862,1.11033,1801.6,1801.5,1.4161]
[1743405232160,2.52813,1801.6,1801.5,42.2161]
[1743405233071,2.52813,1801.6,1801.5,40.8]
[1743405233972,2.52813,1801.6,1801.5,42.2161]
[1743405236660,2.52813,1801.6,1801.5,40.8]
[1743405240971,6.43513,1801.6,1801.5,40.8]
[1743405242771,2.52813,1801.6,1801.5,40.8]
[1743405245466,1.11033,1801.6,1801.5,40.8]
[1743405245865,1.11033,1801.6,1801.5,42.2229]
[1743405246469,2.12342663,1801.7,1801.6,1.11032]
[1743405246673,2.12342663,1801.7,1801.6,1.3819]
[1743405246674,1.82328663,1801.7,1801.6,1.3819]
[1743405246873,0.00832663,1801.7,1801.6,9.60202]
[1743405247175,23.4965684,1802.1,1801.9,1.11009]
[1743405247376,21.6447084,1802.1,1802.0,1.11007]
[1743405247574,21.6447084,1802.1,1802.0,2.49197]
[1743405247771,22.7547184,1802.1,1802.0,2.49197]
[1743405247968,22.7547184,1802.1,1802.0,43.29197]
[1743405248371,1.11831663,1802.2,1802.1,1.11001]
[1743405248571,1.11831663,1802.2,1802.1,5.69971]
[1743405248866,0.00832663,1802.2,1802.1,5.69971]
[1743405249071,1.10988,1802.4,1802.3,1.10987]
[1743405249276,1.10988,1802.4,1802.3,5.01287]
[1743405249472,2.77429,1802.6,1802.1,4.5897]
[1743405249473,2.77442,1802.5,1802.1,4.5897]
[1743405249674,2.77442,1802.5,1802.2,5.3181]
[1743405249675,1.10989,1802.3,1802.2,5.3181]
[1743405249879,1.10989,1802.3,1802.2,46.1181]
[1743405250070,2.56799,1802.3,1802.2,46.1181]
[1743405250671,2.56799,1802.3,1802.2,42.2151]
[1743405255390,1.4581,1802.3,1802.2,42.2151]
[1743405255586,0.7141,1802.4,1802.2,43.32503]
[1743405255886,1.82393,1802.4,1802.3,1.4283]
[1743405257187,1.82393,1802.4,1802.3,42.2283]
[1743405259597,1.82393,1802.4,1802.3,40.8]
[1743405259902,2.54533,1802.4,1802.3,40.8]
[1743405260091,4.03813,1802.4,1802.3,40.8]
[1743405266606,1.10995,1802.2,1802.1,0.00832663]
[1743405266805,2.77509,1802.1,1801.5,3.2078]
[1743405266998,1.11032,1801.6,1801.5,7.0658]
[1743405267197,1.11032,1801.6,1801.5,3.2078]
[1743405267398,1.11032,1801.6,1801.5,7.0648]
[1743405267697,1.11032,1801.6,1801.5,40.8]
[1743405268297,1.88322,1801.6,1801.5,40.8]
[1743405268706,5.09102,1801.6,1801.5,40.8]
[1743405268913,9.39750843,1801.6,1801.5,40.8]
[1743405270004,10.15410843,1801.6,1801.5,40.8]
[1743405270507,9.71662,1801.6,1801.5,40.8]